bitfinex/quotes_SOLUSD_20251216
["timestamp","ask_amount","ask_price","bid_price","bid_amount"]
[1765895605924,13.2464124,128.96,128.91,7.75689996]
[1765895606118,0.66,128.97,128.91,21.00331236]
[1765895606423,27.13410104,128.99,128.92,0.72]
[1765895606723,8.41275365,128.99,128.94,13.2464124]
[1765895606927,13.9064124,128.96,128.91,21.00331236]
[1765895607103,13.2464124,128.97,128.91,0.72]
[1765895607461,13.2464124,128.94,128.89,40.40135071]
[1765895607594,27.13410104,128.99,128.89,40.40135071]
[1765895607595,13.2464124,128.95,128.89,27.15493831]
[1765895607796,13.2464124,128.95,128.9,13.2464124]
[1765895608104,27.79410104,128.99,128.92,0.72]
[1765895608308,7.75008949,129.04,128.98,13.2464124]
[1765895608516,7.75008949,129.04,128.96,0.72]
[1765895608732,20.99650189,129.04,128.96,9.2]
[1765895609045,20.99650189,129.04,128.98,13.2464124]
[1765895609046,7.75073631,129.02,128.98,13.2464124]
[1765895609421,13.2464124,129.04,128.99,13.2464124]
[1765895609619,13.2464124,129.03,128.98,13.2464124]
[1765895610361,13.2464124,128.99,128.96,0.72]
[1765895610525,13.9064124,128.98,128.92,13.2464124]
[1765895610718,21.5070912,129.03,128.9,13.2464124]
[1765895610719,13.9064124,128.95,128.9,13.2464124]
[1765895610920,13.9064124,128.95,128.86,0.2]
[1765895610921,13.2464124,128.91,128.86,0.2]
[1765895611142,13.2464124,128.87,128.86,0.2]
[1765895611471,13.2464124,128.87,128.84,0.2]
[1765895611472,0.66,128.88,128.84,0.2]
[1765895611749,40.20202951,128.89,128.78,1e-08]
[1765895611750,13.9064124,128.79,128.78,1e-08]
[1765895611948,0.66,128.75,128.66,7.77230711]
[1765895612266,0.66,128.75,128.59,38.88027462]
[1765895612267,13.2464124,128.68,128.61,0.72]
[1765895612422,0.66,128.68,128.61,13.9664124]
[1765895612618,8.46,128.69,128.63,7.77420757]
[1765895612818,13.2464124,128.67,128.64,0.72]
[1765895613055,13.2464124,128.66,128.62,0.72]
[1765895613227,9.12,128.7,128.62,13.9664124]
[1765895613439,13.2464124,128.67,128.62,0.72]
[1765895613619,13.2464124,128.66,128.61,27.21399858]
[1765895613814,13.2464124,128.63,128.6,7.77598526]
[1765895614043,13.2464124,128.62,128.59,7.77654778]
[1765895614546,8.48,128.7,128.61,13.2464124]
[1765895614744,8.48,128.7,128.62,0.67]
[1765895614916,0.72,128.78,128.63,8.80994492]
[1765895615121,0.72,128.78,128.7,7.76990906]
[1765895615329,13.2464124,128.74,128.7,7.76990906]
[1765895615523,8.48,128.74,128.68,7.77075795]
[1765895615828,0.72,128.73,128.65,19.43113904]
[1765895616030,13.2464124,128.73,128.68,8.44070454]
[1765895616348,20.40658963,128.83,128.7,40.44103776]
[1765895616655,13.2464124,128.73,128.68,13.2464124]
[1765895616831,8.48,128.76,128.69,7.77054357]
[1765895617033,13.2464124,128.72,128.68,7.77119392]
[1765895617226,13.2464124,128.75,128.69,0.67]
[1765895617426,13.2464124,128.73,128.68,21.01760632]
[1765895617846,13.2464124,128.73,128.68,41.11564486]
[1765895618021,13.2464124,128.74,128.7,0.67]
[1765895618327,13.2464124,128.74,128.68,27.19923246]
[1765895618328,13.2464124,128.76,128.71,13.9164124]
[1765895618728,13.2464124,128.76,128.71,0.67]
[1765895618931,13.2464124,128.75,128.7,13.2464124]
[1765895619246,13.2464124,128.73,128.68,27.86923246]
[1765895619437,13.2464124,128.74,128.69,13.2464124]
[1765895619638,13.2464124,128.73,128.68,7.77119392]
[1765895619858,0.72,128.7,128.65,7.77253846]
[1765895620027,13.2464124,128.69,128.65,7.77253846]
[1765895620224,8.48,128.71,128.65,19.4323328]
[1765895620423,8.48,128.71,128.66,13.2464124]
[1765895620424,21.7264124,128.71,128.66,13.2464124]
[1765895620624,21.7264124,128.71,128.65,19.4323328]
[1765895620625,13.2464124,128.7,128.67,7.77168775]
[1765895620827,13.2464124,128.7,128.67,7.77169776]
[1765895621130,0.72,128.77,128.7,0.67]
[1765895621329,13.2464124,128.74,128.68,7.77118419]
[1765895621542,13.2464124,128.72,128.68,7.77118419]
[1765895621753,13.2464124,128.7,128.58,0.99999999]
[1765895621929,13.2464124,128.7,128.67,7.77173206]
[1765895622331,8.48,128.79,128.69,0.67]
[1765895622553,13.2464124,128.77,128.71,0.67]
[1765895622753,13.2464124,128.77,128.72,13.2464124]
[1765895623050,13.2464124,128.75,128.7,21.01588851]
[1765895623351,26.2935036,128.75,128.71,7.76897436]
[1765895623550,13.2464124,128.72,128.67,13.2464124]
[1765895623845,8.48,128.74,128.66,13.2464124]
[1765895624152,13.7670912,128.75,128.68,13.2464124]
[1765895624456,13.2464124,128.75,128.71,7.76934925]
[1765895625042,21.5270912,128.76,128.68,7.77121541]
[1765895625346,8.4840002,128.8,128.68,7.77121541]
[1765895625347,8.48,128.77,128.73,13.2464124]
[1765895625549,8.48,128.8,128.74,13.9164124]
[1765895625727,21.5270912,128.8,128.74,0.67]
[1765895625923,13.2464124,128.79,128.74,13.2464124]
[1765895626124,0.72,128.84,128.76,0.67]
[1765895626337,13.0470912,128.82,128.76,13.9164124]
[1765895626647,13.2464124,128.81,128.76,13.9164124]
[1765895626847,13.0470912,128.82,128.76,13.9164124]
[1765895627150,0.72,128.84,128.78,7.76518092]
[1765895627151,13.7670912,128.84,128.78,7.76518092]
[1765895627349,13.2464124,128.88,128.8,0.67]
[1765895627664,13.2464124,128.9,128.85,13.9164124]
[1765895627864,13.0470912,128.9,128.84,13.2464124]
[1765895628035,13.2464124,128.88,128.83,13.9164124]
[1765895628442,13.2464124,128.87,128.82,13.2464124]
[1765895628736,9.3,128.91,128.79,0.67]
[1765895628938,9.3,128.91,128.81,0.67]
[1765895628939,13.2464124,128.9,128.81,0.67]
[1765895629236,13.0470912,128.89,128.86,7.76036008]
[1765895629641,26.2935036,128.89,128.83,0.67]
[1765895629958,13.2464124,128.88,128.83,13.2464124]
[1765895630151,13.2464124,128.87,128.82,33.32202141]
[1765895630357,13.2464124,128.89,128.85,7.7607783]
[1765895630654,8.48,128.9,128.85,21.6771907]
[1765895630861,21.7264124,128.9,128.85,21.6771907]
[1765895631031,8.48,128.9,128.86,13.9164124]
[1765895631358,8.48,128.9,128.86,7.76021451]
[1765895631545,0.1,128.91,128.89,13.9164124]
[1765895631857,0.1,128.91,128.87,8.80994492]
[1765895632153,0.1,128.91,128.9,13.9164124]
[1765895632333,0.1,128.91,128.9,0.67]
[1765895632535,0.1,128.91,128.86,27.16111471]
[1765895633050,0.1,128.91,128.88,13.2464124]
[1765895633361,13.2464124,128.9,128.86,7.76021451]
[1765895633565,13.2464124,128.88,128.83,22.4164124]
[1765895633767,13.2464124,128.88,128.84,7.76117637]
[1765895634069,13.2464124,128.88,128.85,7.76087297]
[1765895634243,13.2464124,128.87,128.8,47.98917987]
[1765895634447,13.2464124,128.87,128.82,13.2464124]
[1765895634761,13.2464124,128.85,128.83,7.76215095]
[1765895635010,13.2464124,128.86,128.83,7.76215095]
[1765895635269,13.2464124,128.87,128.82,21.00918215]
[1765895635469,26.2935036,128.88,128.83,13.9164124]
[1765895635630,0.82,128.91,128.85,13.9164124]
[1765895635631,13.1470912,128.91,128.85,13.9164124]
[1765895635833,26.3935036,128.91,128.86,13.2464124]
[1765895636138,13.2464124,128.89,128.84,13.9164124]
[1765895636338,13.2464124,128.88,128.84,0.67]
[1765895636537,13.2464124,128.89,128.84,13.9164124]
[1765895636777,26.3935036,128.91,128.84,0.67]
[1765895636938,13.2464124,128.9,128.85,13.9164124]
[1765895637429,13.2464124,128.89,128.85,0.67]
[1765895637635,13.2464124,128.88,128.83,32.65127309]
[1765895637846,13.2464124,128.87,128.83,19.40486069]
[1765895638039,0.72,128.88,128.82,7.76230275]
[1765895638262,13.27502683,128.84,128.79,13.27502683]
[1765895638447,13.27502683,128.84,128.79,0.67]
[1765895638643,13.27502683,128.84,128.71,39.84525974]
[1765895638873,13.27502683,128.82,128.78,7.76503207]
[1765895639180,13.27502683,128.83,128.79,13.27502683]
[1765895639365,20.80809737,128.85,128.8,7.76397515]
[1765895639680,26.32211803,128.85,128.8,21.70900198]
[1765895639881,13.27502683,128.87,128.82,13.94502683]
[1765895640087,0.1,128.91,128.87,0.67]
[1765895640255,0.1,128.91,128.9,13.94502683]
[1765895640457,0.1,128.91,128.74,41.27191496]
[1765895640657,13.37502683,128.91,128.85,13.94502683]
[1765895640860,13.27502683,128.89,128.83,13.27502683]
[1765895641066,13.27502683,128.89,128.83,13.94502683]
[1765895641385,0.1,128.91,128.89,0.67]
[1765895641551,0.1,128.91,128.88,13.27502683]
[1765895641552,0.1,128.91,128.9,22.75497175]
[1765895641757,0.1,128.91,128.9,13.94502683]
[1765895641957,13.37502683,128.91,128.87,0.67]
[1765895642258,0.1,128.91,128.88,0.67]
[1765895642471,0.1,128.91,128.87,13.94502683]
[1765895642665,0.1,128.91,128.89,0.67]
[1765895642871,0.1,128.91,128.89,13.27502683]
[1765895643067,0.1,128.91,128.9,13.94502683]
[1765895643290,0.1,128.91,128.87,21.75502683]
[1765895643590,0.1,128.91,128.88,7.75859165]
[1765895643767,0.1,128.91,128.88,21.71361848]
[1765895643962,0.1,128.91,128.88,7.75859165]
[1765895644160,13.27502683,128.89,128.84,13.95502683]
[1765895644457,13.27502683,128.9,128.85,13.27502683]
[1765895644663,13.27502683,128.89,128.84,13.95502683]
[1765895644883,13.37502683,128.91,128.87,8.43923487]
[1765895645089,0.1,128.91,128.89,0.68]
[1765895645282,0.1,128.91,128.9,13.95502683]
[1765895645470,0.1,128.91,128.9,21.71297873]
[1765895645779,0.1,128.91,128.89,7.75837986]
[1765895645985,0.1,128.91,128.89,8.43837986]
[1765895646186,0.1,128.91,128.9,7.7579519]
[1765895646507,13.37502683,128.91,128.84,0.68]
[1765895646673,13.37502683,128.91,128.79,13.95502683]
[1765895646674,13.27502683,128.85,128.79,13.95502683]
[1765895646876,13.27502683,128.83,128.77,8.48]
[1765895647193,13.27502683,128.82,128.78,0.68]
[1765895647377,13.27502683,128.81,128.78,7.76518092]
[1765895647698,13.27502683,128.82,128.78,7.76518092]
[1765895647903,13.27502683,128.81,128.77,7.7657546]
[1765895648105,13.27502683,128.82,128.77,41.13524131]
[1765895648270,13.27502683,128.84,128.79,13.27502683]
[1765895648469,13.27502683,128.84,128.79,0.68]
[1765895648694,13.27502683,128.85,128.8,13.27502683]
[1765895648894,7.76040131,128.86,128.79,13.27502683]
[1765895649097,13.27502683,128.84,128.79,13.95502683]
[1765895649393,13.27502683,128.85,128.8,8.44397515]
[1765895649568,7.75934468,128.88,128.81,13.95502683]
[1765895649767,13.27502683,128.87,128.82,0.68]
[1765895650025,13.27502683,128.88,128.82,13.95502683]
[1765895650298,13.27502683,128.86,128.8,27.17391303]
[1765895650500,20.80573319,128.89,128.82,13.95502683]
[1765895650792,0.1,128.91,128.87,0.68]
[1765895650999,13.27502683,128.88,128.82,0.68]
[1765895651173,8.52737087,128.91,128.85,13.95502683]
[1765895651174,13.27502683,128.9,128.85,13.95502683]
[1765895651495,21.03311754,128.9,128.86,7.76036008]
[1765895651667,21.03311754,128.9,128.85,21.71593608]
[1765895651975,13.27502683,128.88,128.85,0.68]
[1765895652174,13.27502683,128.89,128.85,7.76074928]
[1765895652494,0.1,128.91,128.85,7.76074928]
[1765895652495,7.85760154,128.91,128.85,7.76074928]
[1765895652688,0.1,128.91,128.88,13.95502683]
[1765895652865,0.1,128.91,128.88,13.27502683]
[1765895653061,0.1,128.91,128.87,13.95502683]
[1765895653273,0.1,128.91,128.88,0.68]
[1765895653470,19.3804747,129.0,128.9,22.08497175]
[1765895653775,13.27502683,128.98,128.93,13.95502683]
[1765895653982,7.75253895,128.99,128.91,8.80994492]
[1765895654183,13.27502683,128.98,128.92,0.68]
[1765895654383,13.27502683,128.96,128.92,0.68]
[1765895654590,13.27502683,128.95,128.89,7.7585538]
[1765895654784,13.0470912,128.96,128.88,41.11191867]
[1765895654970,21.5270912,128.96,128.9,13.95502683]
[1765895655171,13.27502683,128.95,128.9,0.68]
[1765895655367,13.27502683,128.95,128.9,13.95502683]
[1765895655588,29.50973013,128.96,128.91,21.71237691]
[1765895655898,19.38029975,129.0,128.94,13.95502683]
[1765895656099,13.27502683,128.99,128.95,0.68]
[1765895656397,29.50717722,129.0,128.95,13.95502683]
[1765895656606,13.27502683,128.98,128.93,13.27502683]
[1765895656766,13.27502683,128.97,128.93,0.68]
[1765895656965,49.32908655,129.0,128.92,0.68]
[1765895657198,13.27502683,128.99,128.95,0.68]
[1765895657533,29.50717722,129.0,128.95,13.27502683]
[1765895657678,29.50717722,129.0,128.95,21.70993996]
[1765895657884,7.75146578,129.01,128.97,13.95502683]
[1765895658188,13.27502683,129.0,128.95,21.02993996]
[1765895658394,7.75146578,129.01,128.97,13.27502683]
[1765895658574,0.1,129.04,129.01,0.68]
[1765895658772,0.1,129.04,129.0,13.95502683]
[1765895658975,0.1,129.04,129.01,13.95502683]
[1765895659192,7.84958362,129.04,129.0,13.27502683]
[1765895659501,13.27502683,129.03,128.96,0.68]
[1765895659803,13.27502683,129.03,128.98,13.95502683]
[1765895660102,13.27502683,129.03,128.98,8.43271291]
[1765895660298,13.27502683,129.03,128.98,21.70773974]
[1765895660500,16.32958362,129.04,128.99,7.75252399]
[1765895660796,13.27502683,129.03,128.99,0.68]
[1765895661098,0.1,129.04,129.01,0.68]
[1765895661327,7.84956107,129.04,129.0,21.02676373]
[1765895661485,19.33180667,129.02,128.97,11.58107036]
[1765895661689,11.58107036,129.01,128.97,0.68]
[1765895661887,11.58107036,129.01,128.97,8.43365163]
[1765895662109,11.58107036,129.01,128.97,0.68]
[1765895662381,20.06107036,129.02,128.98,0.68]
[1765895662587,8.48,129.02,128.98,20.01407501]
[1765895663017,8.48,129.02,128.98,8.43300465]
[1765895663018,11.58107036,129.02,128.98,8.43300465]
[1765895663218,0.1,129.04,129.01,0.68]
[1765895663584,0.1,129.04,129.01,8.43125789]
[1765895663801,0.1,129.04,129.01,20.01232825]
[1765895664002,0.1,129.04,129.01,8.43125789]
[1765895664211,12.25107036,129.02,128.96,13.0470912]
[1765895664421,11.58107036,128.98,128.93,19.33678003]
[1765895664622,11.58107036,128.98,128.94,8.4350651]
[1765895664799,11.58107036,128.99,128.94,20.01652747]
[1765895664993,11.58107036,128.99,128.95,7.75489138]
[1765895665205,0.67,129.0,128.91,11.58107036]
[1765895665206,11.58107036,128.96,128.91,11.58107036]
[1765895665405,11.58107036,128.96,128.86,7.76013765]
[1765895665406,11.58107036,128.92,128.86,7.76013765]
[1765895665615,27.1465136,128.93,128.87,7.75958129]
[1765895666000,40.1936048,128.93,128.86,0.68]
[1765895666204,11.58107036,128.87,128.75,0.99999999]
[1765895666419,11.58107036,128.86,128.82,0.68]
[1765895666726,11.58107036,128.87,128.83,0.68]
[1765895666907,8.48,128.89,128.82,8.44239043]
[1765895666908,11.58107036,128.86,128.82,8.44239043]
[1765895667220,0.67,128.88,128.81,7.76324412]
[1765895667528,8.06773265,128.86,128.82,8.4427359]
[1765895667701,16.54773265,128.87,128.82,8.4427359]
[1765895667896,20.8053767,128.9,128.83,8.74773265]
[1765895668208,20.8053767,128.9,128.84,8.74773265]
[1765895668405,8.06773265,128.89,128.85,0.68]
[1765895668616,8.06773265,128.89,128.84,8.74773265]
[1765895668817,40.20025645,128.9,128.81,7.76335448]
[1765895669021,40.20025645,128.9,128.83,8.74773265]
[1765895669022,20.8053767,128.9,128.83,8.74773265]
[1765895669198,20.8053767,128.9,128.84,8.06773265]
[1765895669400,11.60865768,128.89,128.84,12.28865768]
[1765895669631,11.60865768,128.86,128.81,19.37203008]
[1765895669818,20.08865768,128.87,128.83,0.68]
[1765895670020,11.60865768,128.86,128.81,19.37203008]
[1765895670229,11.60865768,128.85,128.81,8.4433724]
[1765895670524,12.27865768,128.82,128.78,0.2]
[1765895670726,11.60865768,128.81,128.78,0.2]
[1765895670933,11.60865768,128.8,128.78,0.2]
[1765895671102,11.60865768,128.79,128.78,0.2]
[1765895671431,8.48,128.82,128.78,0.2]
[1765895671740,8.48,128.82,128.78,7.96517946]
[1765895672032,9.15,128.83,128.78,0.2]
[1765895672199,8.48,128.83,128.78,38.98633005]
[1765895672395,11.60865768,128.84,128.79,0.68]
[1765895672623,8.48,128.83,128.79,0.68]
[1765895672805,0.67,128.82,128.78,0.2]
[1765895673008,11.60865768,128.81,128.78,7.96507966]
[1765895673216,8.48,128.83,128.78,8.64507966]
[1765895673410,20.08865768,128.83,128.78,8.64507966]
[1765895673704,29.28811226,128.85,128.8,8.45397515]
[1765895673935,0.67,128.96,128.84,12.29865768]
[1765895674142,0.67,128.92,128.85,11.60865768]
[1765895674426,11.60865768,128.91,128.85,12.29865768]
[1765895674729,11.60865768,128.9,128.85,0.69]
[1765895674909,11.60865768,128.9,128.85,12.29865768]
[1765895675297,11.60865768,128.9,128.81,8.80994492]
[1765895675298,19.39012615,128.94,128.87,12.29865768]
[1765895675631,11.60865768,128.92,128.88,0.69]
[1765895675830,11.60865768,128.9,128.86,7.76036008]
[1765895676005,11.60865768,128.9,128.85,8.45077147]
[1765895676206,11.60865768,128.9,128.85,20.05942915]
[1765895676410,7.75671688,128.93,128.87,11.60865768]
[1765895676615,19.36537456,128.93,128.88,12.29865768]
[1765895676814,11.60865768,128.92,128.88,0.69]
[1765895677029,8.42671688,128.93,128.85,20.05942915]
[1765895677238,21.47380808,128.93,128.85,20.05942915]
[1765895677418,40.19417494,128.93,128.87,12.29865768]
[1765895677621,8.48,128.92,128.85,19.36942915]
[1765895677828,11.60865768,128.89,128.84,28.5400389]
[1765895678152,0.67,128.91,128.85,19.36959799]
[1765895678345,8.48,128.92,128.86,12.29865768]
[1765895678636,8.48,128.92,128.87,11.60865768]
[1765895678841,8.48,128.92,128.88,0.69]
[1765895679222,7.75557857,128.94,128.89,12.29865768]
[1765895679536,11.60865768,128.93,128.89,8.44802468]
[1765895679839,19.36423625,128.94,128.89,7.75847251]
[1765895680013,19.36423625,128.94,128.89,8.44847251]
[1765895680213,19.36382318,128.95,128.9,12.29865768]
[1765895680414,19.36382318,128.95,128.9,0.69]
[1765895680650,16.233838,128.97,128.93,0.69]
[1765895680814,27.84249568,128.97,128.93,0.69]
[1765895681016,11.60865768,128.95,128.9,12.29865768]
[1765895681229,36.28819095,128.97,128.91,11.60865768]
[1765895681434,20.03360145,128.95,128.89,20.08865768]
[1765895681636,11.60865768,128.95,128.91,7.75729322]
[1765895681815,19.36318825,128.96,128.91,20.0559509]
[1765895682024,11.60865768,128.95,128.91,0.69]
[1765895682424,7.75453057,128.96,128.91,12.29865768]
[1765895682747,11.60865768,128.94,128.89,19.39510053]
[1765895682931,11.60865768,128.95,128.9,20.05619622]
[1765895683246,19.36318825,128.96,128.92,0.69]
[1765895683439,19.36318825,128.96,128.92,7.75666446]
[1765895683745,19.36318825,128.96,128.92,8.44666446]
[1765895683916,27.84257733,128.97,128.92,20.05532214]
[1765895684121,11.60865768,128.96,128.91,19.36563108]
[1765895684322,11.60865768,128.95,128.91,8.4469734]
[1765895684622,19.36203067,128.98,128.94,0.69]
[1765895685139,19.36203067,128.98,128.93,11.60865768]
[1765895685347,19.36203067,128.98,128.94,0.69]
[1765895685724,19.36203067,128.98,128.92,19.39187092]
[1765895685927,11.60865768,128.96,128.91,11.60865768]
[1765895686128,20.08865768,128.96,128.91,20.05563952]
[1765895686329,20.08865768,128.96,128.92,7.75672962]
[1765895686623,0.67,128.92,128.82,7.7626508]
[1765895686837,13.0470912,128.88,128.8,0.69]
[1765895687046,11.60865768,128.86,128.83,0.69]
[1765895687249,11.60865768,128.84,128.79,19.41065704]
[1765895687569,11.60865768,128.83,128.78,7.96477681]
[1765895687753,11.60865768,128.8,128.78,0.2]
[1765895687923,12.27865768,128.79,128.78,0.2]
[1765895688123,40.8893704,128.81,128.78,0.2]
[1765895688333,11.60865768,128.8,128.78,0.2]
[1765895688839,20.08865768,128.82,128.79,0.69]
[1765895689037,8.48,128.82,128.79,0.69]
[1765895689347,20.08865768,128.82,128.79,0.69]
[1765895689657,16.5527722,128.82,128.79,0.69]
[1765895690018,16.24310305,128.82,128.79,0.69]
[1765895690219,16.5527722,128.82,128.79,0.69]
[1765895690456,16.5527722,128.82,128.79,8.45447337]
[1765895690639,8.48,128.82,128.8,0.69]
[1765895690834,21.1198634,128.85,128.8,0.69]
[1765895691039,9.47994492,128.91,128.82,8.7627722]
[1765895691344,8.0727722,128.89,128.83,8.0727722]
[1765895691653,8.0727722,128.9,128.86,0.69]
[1765895691859,7.75950667,128.88,128.83,0.69]
[1765895692155,8.0727722,128.87,128.83,0.69]
[1765895692368,24.31227887,128.88,128.83,0.69]
[1765895692650,24.31227887,128.88,128.84,0.69]
[1765895692827,24.31227887,128.88,128.82,8.0727722]
[1765895692828,7.7599541,128.87,128.83,7.76212945]
[1765895693030,24.31215492,128.88,128.84,0.69]
[1765895693755,16.23862591,128.89,128.86,0.69]
[1765895693957,8.0727722,128.88,128.83,8.45212945]
[1765895694129,8.0727722,128.87,128.84,0.69]
[1765895694456,8.0727722,128.87,128.83,0.69]
[1765895695082,15.83310675,128.87,128.83,0.69]
[1765895695247,8.0727722,128.85,128.81,7.76324649]
[1765895695447,16.5527722,128.86,128.81,8.7627722]
[1765895695629,8.48,128.86,128.83,8.45198221]
[1765895695829,13.0470912,128.88,128.84,0.69]
[1765895695830,16.5527722,128.88,128.84,0.69]
[1765895696054,8.48,128.88,128.84,8.0727722]
[1765895696265,8.48,128.88,128.85,8.0727722]
[1765895696470,8.48,128.88,128.86,8.7627722]
[1765895696629,16.5527722,128.92,128.87,0.69]
[1765895696830,0.67,128.99,128.85,0.69]
[1765895697056,16.23314002,128.98,128.91,0.69]
[1765895697263,8.0727722,128.96,128.91,0.69]
[1765895697753,8.0727722,128.94,128.87,0.69]
[1765895697942,8.0727722,128.93,128.9,0.69]
[1765895698656,8.0727722,128.94,128.9,0.69]
[1765895698957,8.0727722,128.94,128.89,8.0727722]
[1765895699260,16.5527722,128.96,128.91,0.69]
[1765895699428,8.48,128.96,128.92,0.69]
[1765895699630,27.45493513,128.99,128.94,0.69]
[1765895699830,8.0727722,128.98,128.94,0.69]
[1765895700072,8.48,128.99,128.95,0.69]
[1765895700227,0.1,129.04,128.97,8.0727722]
[1765895700433,0.1,129.04,129.02,0.69]
[1765895700633,4.05314696,129.11,129.04,0.69]
[1765895700634,4.04975228,129.11,129.04,0.69]
[1765895700950,27.10866702,129.11,129.04,8.0727722]
[1765895701149,20.79242463,129.11,129.04,7.7494583]
[1765895701344,9.15,129.12,129.04,7.7494583]
[1765895701345,24.29755239,129.12,129.07,0.69]
[1765895701659,8.0727722,129.08,129.04,0.69]
[1765895701879,8.0727722,129.06,129.01,8.44081431]
[1765895702175,8.48,129.08,129.02,0.69]
[1765895702460,8.0727722,129.1,129.05,0.69]
[1765895702657,8.0727722,129.1,129.06,0.69]
[1765895702857,0.1,129.19,129.09,8.0727722]
[1765895703043,8.0727722,129.16,129.11,8.43533343]
[1765895703243,8.0727722,129.14,129.1,7.74579365]
[1765895703440,8.0727722,129.11,129.05,15.8212647]
[1765895703640,8.48,129.1,129.03,8.45995486]
[1765895703841,8.0727722,129.04,128.92,0.71]
[1765895704042,8.0727722,129.02,128.98,0.71]
[1765895704258,13.0470912,129.12,129.02,0.71]
[1765895704456,0.71,129.11,129.02,8.0727722]
[1765895704663,8.0727722,129.07,129.02,0.71]
[1765895704851,8.0727722,129.08,129.03,0.71]
[1765895705161,8.0727722,129.07,129.03,8.46002119]
[1765895705472,8.0727722,129.08,129.03,8.46002119]
[1765895705634,7.7457947,129.11,129.04,8.0727722]
[1765895705957,8.0727722,129.13,129.08,0.71]
[1765895706136,8.56,129.17,129.1,8.03263088]
[1765895706345,8.56,129.17,129.08,8.80994492]
[1765895706346,8.13263088,129.17,129.13,0.71]
[1765895706546,15.87463264,129.17,129.13,0.71]
[1765895706768,0.1,129.17,129.13,0.71]
[1765895706958,0.1,129.17,129.14,0.71]
[1765895707249,0.1,129.19,129.17,0.71]
[1765895707582,0.1,129.19,129.18,0.71]
[1765895708074,0.1,129.19,129.15,8.03263088]
[1765895708287,8.03263088,129.18,129.14,8.45339548]
[1765895708451,8.03263088,129.18,129.15,0.71]
[1765895708649,8.03263088,129.16,129.12,0.71]
[1765895708850,8.03263088,129.16,129.12,7.74425622]
[1765895709049,8.03263088,129.17,129.13,0.71]
[1765895709371,8.03263088,129.16,129.12,0.71]
[1765895709570,8.03263088,129.14,129.1,0.71]
[1765895709765,21.5070912,129.16,129.09,7.74627644]
[1765895709963,8.03263088,129.13,129.08,16.48958497]
[1765895710261,8.03263088,129.14,129.1,0.71]
[1765895710461,21.5070912,129.16,129.1,0.71]
[1765895710662,8.03263088,129.16,129.13,0.71]
[1765895710870,8.03263088,129.16,129.1,8.03263088]
[1765895711076,7.74127265,129.18,129.13,7.74377007]
[1765895711381,0.1,129.19,129.18,0.71]
[1765895711678,0.1,129.19,129.14,8.80994492]
[1765895711874,0.1,129.19,129.17,0.71]
[1765895712378,0.1,129.19,129.18,0.71]
[1765895712557,0.1,129.19,129.18,8.74263088]
[1765895712877,0.1,129.19,129.18,0.71]
[1765895713083,0.1,129.19,129.15,0.71]
[1765895713254,0.1,129.19,129.16,0.71]
[1765895713449,0.1,129.19,129.18,0.71]
[1765895713674,0.1,129.19,129.16,8.03263088]
[1765895713875,0.1,129.19,129.16,0.71]
[1765895714077,0.1,129.19,129.16,8.74263088]
[1765895714386,0.1,129.23,129.18,8.03263088]
[1765895714584,0.1,129.23,129.22,8.03263088]
[1765895714789,0.1,129.23,129.22,8.74263088]
[1765895715101,0.1,129.23,129.17,0.71]
[1765895715254,0.1,129.23,129.16,8.80994492]
[1765895715255,8.03263088,129.19,129.13,0.71]
[1765895715454,8.03263088,129.19,129.11,8.48]
[1765895715455,8.03263088,129.15,129.11,0.71]
[1765895715889,8.03263088,129.15,129.11,8.45520168]
[1765895716056,21.07972208,129.18,129.13,0.71]
[1765895716390,8.03263088,129.19,129.15,0.71]
[1765895716560,13.0470912,129.2,129.11,16.22520168]
[1765895716758,8.03263088,129.18,129.12,8.74263088]
[1765895716955,0.81,129.23,129.15,8.74263088]
[1765895717182,8.03263088,129.2,129.16,0.71]
[1765895717386,7.74028901,129.2,129.16,0.71]
[1765895717586,15.77291989,129.2,129.16,0.71]
[1765895717882,8.03263088,129.19,129.15,8.45277148]
[1765895718059,15.77291989,129.2,129.16,0.71]
[1765895718259,7.73955487,129.21,129.16,0.71]
[1765895718493,0.1,129.23,129.17,0.71]